fUSD/lending_fUSD_20240420
["ID","MTS","AMOUNT","RATE_DAILY","PERIOD"]
[323015244,1713588650868,-500.0,0.00015616,2]
[323015245,1713588650877,-573.24,0.00015616,2]
[323015246,1713588650887,-833.96,0.00015616,2]
[323015247,1713588650896,-500.0,0.00015616,2]
[323015248,1713588650905,-645.04,0.00015616,2]
[323015249,1713588650914,-969.44,0.00015616,2]
[323015250,1713588650923,-500.0,0.00015616,2]
[323015251,1713588650932,-500.0,0.00015616,2]
[323015252,1713588650941,-500.0,0.00015616,2]
[323015253,1713588650950,-500.0,0.00015616,2]
[323015254,1713588650959,-572.04,0.00015616,2]
[323015255,1713588650968,-1277.9,0.00015616,2]
[323015256,1713588650977,-500.0,0.00015616,2]
[323015257,1713588650986,-513.06,0.00015616,2]
[323015258,1713588650996,-500.0,0.00015616,2]
[323015259,1713588651005,-500.0,0.00015616,2]
[323015260,1713588651014,-647.33,0.00015616,2]
[323015261,1713588651024,-1020.08,0.00015616,2]
[323015262,1713588651033,-767.62,0.00015616,2]
[323015263,1713588651043,-500.0,0.00015616,2]
[323015264,1713588651052,-823.3,0.00015616,2]
[323015265,1713588651061,-500.0,0.00015616,2]
[323015266,1713588651071,-179.20123564,0.00015616,2]
[323015267,1713588651080,-500.0,0.00015616,2]
[323015268,1713588651089,-466.25052286,0.00015616,2]
[323015269,1713588651099,-500.0,0.00015616,2]
[323015270,1713588651108,-500.0,0.00015616,2]
[323015271,1713588651118,-1155.67,0.00015616,2]
[323015272,1713588651128,-754.57,0.00015616,2]
[323015273,1713588651138,-500.0,0.00015616,2]
[323015274,1713588651149,-861.29,0.00015616,2]
[323015275,1713588651158,-722.87,0.00015616,2]
[323015276,1713588651168,-790.36,0.00015616,2]
[323015277,1713588651177,-604.08,0.00015616,2]
[323015278,1713588651187,-500.0,0.00015616,2]
[323015279,1713588651196,-534.21,0.00015616,2]
[323015280,1713588651205,-524.44,0.00015616,2]
[323015281,1713588651214,-500.0,0.00015616,2]
[323015282,1713588651225,-500.0,0.00015616,2]
[323015283,1713588651235,-1044.95,0.00015616,2]
[323015284,1713588651245,-846.88,0.00015616,2]
[323015285,1713588651254,-1239.75,0.00015616,2]
[323015286,1713588651264,-500.0,0.00015616,2]
[323015287,1713588651273,-523.68,0.00015616,2]
[323015288,1713588651282,-500.0,0.00015616,2]
[323015289,1713588651292,-500.0,0.00015616,2]
[323015290,1713588651301,-588.8556026,0.00015616,2]
[323015291,1713588651311,-551.79,0.00015616,2]
[323015292,1713588651320,-857.17,0.00015616,2]
[323015293,1713588651330,-500.0,0.00015616,2]
[323015294,1713588651339,-1724.94,0.00015616,2]
[323015295,1713588651348,-500.0,0.00015616,2]
[323015296,1713588651357,-534.1,0.00015616,2]
[323015297,1713588651367,-500.0,0.00015616,2]
[323015298,1713588651377,-1289.5,0.00015616,2]
[323015299,1713588651386,-907.25,0.00015616,2]
[323015300,1713588651395,-1112.05,0.00015616,2]
[323015301,1713588651404,-536.04,0.00015616,2]
[323015302,1713588651414,-500.0,0.00015616,2]
[323015303,1713588651424,-704.43,0.00015616,2]
[323015304,1713588651434,-500.0,0.00015616,2]
[323015305,1713588651444,-1624.22,0.00015616,2]
[323015306,1713588651454,-271.46218567,0.00015616,2]
[323015307,1713588651463,-823.85,0.00015616,2]
[323015308,1713588651473,-553.13,0.00015616,2]
[323015309,1713588651483,-500.0,0.00015616,2]
[323015310,1713588651492,-504.26,0.00015616,2]
[323015311,1713588651502,-500.0,0.00015616,2]
[323015312,1713588651511,-1562.8,0.00015616,2]
[323015313,1713588651520,-769.72,0.00015616,2]
[323015314,1713588651530,-1673.62,0.00015616,2]
[323015315,1713588651539,-500.0,0.00015616,2]
[323015316,1713588651549,-346.97695639,0.00015616,2]
[323015317,1713588651558,-979.88,0.00015616,2]
[323015318,1713588651568,-1793.12,0.00015616,2]
[323015319,1713588651578,-500.0,0.00015616,2]
[323015320,1713588651588,-717.52,0.00015616,2]
[323015321,1713588651597,-500.0,0.00015616,2]
[323015322,1713588651606,-500.0,0.00015616,2]
[323015323,1713588651616,-833.72,0.00015616,2]
[323015324,1713588651626,-500.0,0.00015616,2]
[323015325,1713588651635,-500.0,0.00015616,2]
[323015326,1713588651645,-500.0,0.00015616,2]
[323015327,1713588651655,-1027.38,0.00015616,2]
[323015328,1713588651664,-500.0,0.00015616,2]
[323015329,1713588651673,-572.17,0.00015616,2]
[323015330,1713588651683,-500.0,0.00015616,2]
[323015331,1713588651692,-1202.55,0.00015616,2]
[323015332,1713588651701,-500.0,0.00015616,2]
[323015333,1713588651711,-899.24,0.00015616,2]
[323015334,1713588651721,-500.0,0.00015616,2]
[323015335,1713588651731,-681.76,0.00015616,2]
[323015336,1713588651740,-500.0,0.00015616,2]
[323015337,1713588651749,-500.0,0.00015616,2]
[323015338,1713588651759,-500.0,0.00015616,2]
[323015339,1713588651769,-500.0,0.00015616,2]
[323015340,1713588651780,-1858.19,0.00015616,2]
[323015341,1713588651789,-500.0,0.00015616,2]
[323015342,1713588651798,-500.0,0.00015616,2]
[323015343,1713588651808,-500.0,0.00015616,2]
[323015344,1713588651817,-1107.7,0.00015616,2]
[323015345,1713588651827,-1605.31,0.00015616,2]
[323015346,1713588651837,-500.0,0.00015616,2]
[323015347,1713588651847,-500.0,0.00015616,2]
[323015348,1713588651856,-1486.46,0.00015616,2]
[323015349,1713588651866,-539.78,0.00015616,2]
[323015350,1713588651875,-1511.87,0.00015616,2]
[323015351,1713588651885,-500.0,0.00015616,2]
[323015352,1713588651894,-654.92,0.00015616,2]
[323015353,1713588651903,-622.89,0.00015616,2]
[323015354,1713588651912,-357.95833288,0.00015616,2]
[323015355,1713588651922,-500.0,0.00015616,2]
[323015356,1713588651931,-577.97,0.00015616,2]
[323015357,1713588651941,-702.22,0.00015616,2]
[323015358,1713588651950,-500.0,0.00015616,2]
[323015359,1713588651959,-500.0,0.00015616,2]
[323015360,1713588651970,-676.73,0.00015616,2]
[323015361,1713588651979,-817.96,0.00015616,2]
[323015362,1713588651988,-1437.68,0.00015616,2]
[323015363,1713588651996,-1114.38,0.00015616,2]
[323015364,1713588652006,-1366.37,0.00015616,2]
[323015365,1713588652015,-718.29,0.00015616,2]
[323015366,1713588652024,-1499.7,0.00015616,2]
[323015367,1713588652036,-151.0,0.00015616,2]
[323015368,1713588652045,-500.0,0.00015616,2]
[323015369,1713588652054,-500.0,0.00015616,2]
[323015370,1713588652063,-663.51,0.00015616,2]
[323015371,1713588652076,-940.02,0.00015616,2]
[323015372,1713588652085,-559.11,0.00015616,2]
[323015373,1713588652094,-500.0,0.00015616,2]
[323015374,1713588652104,-500.0,0.00015616,2]
[323015375,1713588652114,-931.41,0.00015616,2]
[323015376,1713588652123,-500.0,0.00015616,2]
[323015377,1713588652133,-1638.53,0.00015616,2]
[323015378,1713588652143,-500.0,0.00015616,2]
[323015379,1713588652152,-622.37,0.00015616,2]
[323015380,1713588652161,-500.0,0.00015616,2]
[323015381,1713588652170,-1151.23,0.00015616,2]
[323015382,1713588652179,-961.47,0.00015616,2]
[323015383,1713588652188,-500.0,0.00015616,2]
[323015384,1713588652198,-500.0,0.00015616,2]
[323015385,1713588652207,-500.0,0.00015616,2]
[323015386,1713588652216,-1072.78,0.00015616,2]
[323015387,1713588652226,-967.78,0.00015616,2]
[323015388,1713588652235,-500.0,0.00015616,2]
[323015389,1713588652245,-1292.78,0.00015616,2]
[323015390,1713588652253,-500.0,0.00015616,2]
[323015391,1713588652263,-500.0,0.00015616,2]
[323015392,1713588652272,-1536.7,0.00015616,2]
[323015393,1713588652284,-500.0,0.00015616,2]
[323015394,1713588652293,-599.31,0.00015616,2]
[323015395,1713588652303,-500.0,0.00015616,2]
[323015396,1713588652312,-2552.47,0.00015616,2]
[323015397,1713588652321,-500.0,0.00015616,2]
[323015398,1713588652330,-1230.31,0.00015616,2]
[323015399,1713588652340,-1147.49,0.00015616,2]
[323015400,1713588652349,-500.0,0.00015616,2]
[323015401,1713588652358,-500.0,0.00015616,2]
[323015402,1713588652367,-655.97,0.00015616,2]
[323015403,1713588652377,-574.1,0.00015616,2]
[323015404,1713588652386,-532.74,0.00015616,2]
[323015405,1713588652395,-500.0,0.00015616,2]
[323015406,1713588652405,-500.0,0.00015616,2]
[323015407,1713588652414,-1048.63,0.00015616,2]
[323015408,1713588652423,-1411.63,0.00015616,2]
[323015409,1713588652432,-2509.57,0.00015616,2]
[323015410,1713588652442,-500.0,0.00015616,2]
[323015411,1713588652451,-500.0,0.00015616,2]
[323015412,1713588652461,-500.0,0.00015616,2]
[323015413,1713588652470,-554.79,0.00015616,2]
[323015414,1713588652479,-500.0,0.00015616,2]
[323015415,1713588652489,-859.54,0.00015616,2]
[323015416,1713588652498,-1404.86,0.00015616,2]
[323015417,1713588652507,-258.37449766,0.00015616,2]
[323015418,1713588652516,-1711.39,0.00015616,2]
[323015419,1713588652526,-613.84,0.00015616,2]
[323015420,1713588652535,-500.0,0.00015616,2]
[323015421,1713588652545,-769.41,0.00015616,2]
[323015422,1713588652554,-834.2,0.00015616,2]
[323015423,1713588652563,-871.68,0.00015616,2]
[323015424,1713588652572,-500.0,0.00015616,2]
[323015425,1713588652582,-503.51,0.00015616,2]
[323015426,1713588652591,-1465.92,0.00015616,2]
[323015427,1713588652600,-671.01,0.00015616,2]
[323015428,1713588652610,-500.0,0.00015616,2]
[323015429,1713588652620,-1101.44,0.00015616,2]
[323015430,1713588652629,-500.0,0.00015616,2]
[323015431,1713588652638,-500.0,0.00015616,2]
[323015432,1713588652647,-500.0,0.00015616,2]
[323015433,1713588652657,-537.17,0.00015616,2]
[323015434,1713588652666,-1011.06,0.00015616,2]
[323015435,1713588652675,-846.88,0.00015616,2]
[323015436,1713588652684,-500.0,0.00015616,2]
[323015437,1713588652693,-1826.95,0.00015616,2]
[323015438,1713588652702,-500.0,0.00015616,2]
[323015439,1713588652712,-1741.13,0.00015616,2]
[323015440,1713588652721,-702.26,0.00015616,2]
[323015441,1713588652730,-500.0,0.00015616,2]
[323015442,1713588652739,-500.0,0.00015616,2]
[323015443,1713588652748,-500.0,0.00015616,2]
[323015444,1713588652757,-574.52,0.00015616,2]
[323015445,1713588652766,-500.0,0.00015616,2]
[323015446,1713588652775,-500.0,0.00015616,2]
[323015447,1713588652785,-500.0,0.00015616,2]
[323015448,1713588652795,-500.0,0.00015616,2]
[323015449,1713588652804,-500.0,0.00015616,2]
[323015450,1713588652813,-364.39592169,0.00015616,2]
[323015451,1713588652823,-500.0,0.00015616,2]
[323015452,1713588652832,-646.85,0.00015616,2]
[323015453,1713588652841,-512.78,0.00015616,2]
[323015454,1713588652850,-500.0,0.00015616,2]
[323015455,1713588652859,-500.0,0.00015616,2]
[323015456,1713588652868,-500.0,0.00015616,2]
[323015457,1713588652877,-617.04,0.00015616,2]
[323015458,1713588652886,-500.0,0.00015616,2]
[323015459,1713588652895,-500.0,0.00015616,2]
[323015460,1713588652904,-927.48,0.00015616,2]
[323015461,1713588652913,-500.0,0.00015616,2]
[323015462,1713588652922,-500.0,0.00015616,2]
[323015463,1713588652931,-500.0,0.00015616,2]
[323015464,1713588652940,-500.0,0.00015616,2]
[323015465,1713588652950,-500.0,0.00015616,2]
[323015466,1713588652959,-666.66,0.00015616,2]
[323015467,1713588652968,-500.0,0.00015616,2]
[323015468,1713588652978,-500.0,0.00015616,2]
[323015469,1713588652987,-616.68,0.00015616,2]
[323015470,1713588652996,-541.17,0.00015616,2]
[323015471,1713588653006,-500.0,0.00015616,2]
[323015472,1713588653015,-500.0,0.00015616,2]
[323015473,1713588653024,-1044.56,0.00015616,2]
[323015474,1713588653034,-500.0,0.00015616,2]
[323015475,1713588653043,-1372.21,0.00015616,2]
[323015476,1713588653052,-500.0,0.00015616,2]
[323015477,1713588653061,-2524.03,0.00015616,2]
[323015478,1713588653073,-774.7,0.00015616,2]
[323015479,1713588653082,-2370.64,0.00015616,2]
[323015480,1713588653091,-500.0,0.00015616,2]
[323015481,1713588653100,-500.0,0.00015616,2]
[323015482,1713588653111,-571.18,0.00015616,2]
[323015483,1713588653120,-500.0,0.00015616,2]
[323015484,1713588653130,-825.2,0.00015616,2]
[323015485,1713588653140,-500.0,0.00015616,2]
[323015486,1713588653151,-1537.73,0.00015616,2]
[323015487,1713588653161,-500.0,0.00015616,2]
[323015488,1713588653171,-500.0,0.00015616,2]
[323015489,1713588653181,-614.24,0.00015616,2]
[323015490,1713588653191,-500.0,0.00015616,2]
[323015491,1713588653201,-14693.94,0.00015616,2]
[323015492,1713588653211,-500.0,0.00015616,2]
[323015493,1713588653221,-4816.56,0.00015616,2]
[323015494,1713588653230,-500.0,0.00015616,2]
[323015495,1713588653240,-500.0,0.00015616,2]
[323015496,1713588653251,-2696.88,0.00015616,2]
[323015497,1713588653260,-3888.82,0.00015616,2]
[323015498,1713588653269,-500.0,0.00015616,2]
[323015499,1713588653280,-500.0,0.00015616,2]
[323015500,1713588653289,-1123.19,0.00015616,2]
[323015501,1713588653298,-500.0,0.00015616,2]
[323015502,1713588653307,-500.0,0.00015616,2]
[323015503,1713588653316,-1350.68,0.00015616,2]
[323015504,1713588653326,-500.0,0.00015616,2]
[323015505,1713588653335,-500.0,0.00015616,2]
[323015506,1713588653344,-500.0,0.00015616,2]
[323015507,1713588653353,-500.0,0.00015616,2]
[323015508,1713588653362,-534.82,0.00015616,2]
[323015509,1713588653371,-18055.72,0.00015616,2]
[323015510,1713588653380,-1759.09,0.00015616,2]
[323015511,1713588653389,-784.05,0.00015616,2]
[323015512,1713588653398,-500.0,0.00015616,2]
[323015513,1713588653407,-2027.24,0.00015616,2]
[323015514,1713588653416,-500.0,0.00015616,2]
[323015515,1713588653424,-500.0,0.00015616,2]
[323015516,1713588653433,-887.98,0.00015616,2]
[323015517,1713588653442,-500.0,0.00015616,2]
[323015518,1713588653452,-548.29,0.00015616,2]
[323015519,1713588653461,-500.0,0.00015616,2]
[323015520,1713588653471,-577.34,0.00015616,2]
[323015521,1713588653480,-734.59,0.00015616,2]
[323015522,1713588653489,-500.0,0.00015616,2]
[323015523,1713588653498,-1022.32,0.00015616,2]
[323015524,1713588653507,-1603.53,0.00015616,2]
[323015525,1713588653516,-515.17,0.00015616,2]
[323015526,1713588653526,-500.0,0.00015616,2]
[323015527,1713588653535,-500.0,0.00015616,2]
[323015528,1713588653544,-500.0,0.00015616,2]
[323015529,1713588653554,-1414.4,0.00015616,2]
[323015530,1713588653563,-1332.1,0.00015616,2]
[323015531,1713588653572,-500.0,0.00015616,2]
[323015532,1713588653581,-500.0,0.00015616,2]
[323015533,1713588653590,-4574.8,0.00015616,2]
[323015534,1713588653600,-657.47,0.00015616,2]
[323015535,1713588653609,-500.0,0.00015616,2]
[323015536,1713588653618,-1191.22,0.00015616,2]
[323015537,1713588653627,-1704.16,0.00015616,2]
[323015538,1713588653636,-7456.8495098,0.00015616,2]
[323015539,1713588654499,-500.0,0.00015068,2]
[323015540,1713588654509,-500.0,0.00015068,2]
[323015541,1713588654518,-500.0,0.00015068,2]
[323015542,1713588654529,-500.0,0.00015342,2]
[323015543,1713588654538,-500.0,0.00015342,2]
[323015544,1713588654548,-67.29376,0.00015342,2]
[323015545,1713588654560,-254.86624,0.00015342,2]
[323015546,1713588654569,-204.54562696,0.00015616,2]
[323015547,1713588654581,-358.94499971,0.00015616,2]
[323015548,1713588655484,-379.82518503,0.00015067,2]
[323015549,1713588655495,-4532.53,0.00015068,2]
[323015550,1713588655504,-500.0,0.00015068,2]
[323015551,1713588655514,-538.87,0.00015068,2]
[323015552,1713588655524,-500.0,0.00015068,2]
[323015553,1713588655535,-500.0,0.00015068,2]
[323015554,1713588655544,-4532.53,0.00015342,2]
[323015555,1713588655554,-500.0,0.00015342,2]
[323015556,1713588655563,-500.0,0.00015342,2]
[323015557,1713588655572,-772.62986353,0.00015616,2]
[323015558,1713588655582,-1011.84,0.00015616,2]
[323015559,1713588655591,-500.0,0.00015616,2]
[323015560,1713588655600,-864.9278399,0.00015616,2]
[323015561,1713588655618,-591.90748716,0.00015616,2]
[323015562,1713588655629,-867.11870689,0.00015616,2]
[323015563,1713588657148,-541.99,0.00015068,2]
[323015564,1713588657159,-1036.1101169,0.00015068,2]
[323015565,1713588657168,-882.88811409,0.00015068,2]
[323015566,1713588657180,-482.24188591,0.00015068,2]
[323015567,1713588657190,-500.0,0.00015068,2]
[323015568,1713588657200,-500.0,0.00015342,2]
[323015569,1713588657209,-1365.13,0.00015342,2]
[323015570,1713588657219,-500.0,0.00015342,2]
[323015571,1713588657229,-1048.27596605,0.00015616,2]
[323015572,1713588657239,-1607.71,0.00015616,2]
[323015573,1713588657248,-500.0,0.00015616,2]
[323015574,1713588657257,-500.0,0.00015616,2]
[323015575,1713588657266,-13.03045342,0.00015616,2]
[323015576,1713588657301,-775.33954658,0.00015616,2]
[323015577,1713588657311,-563.81,0.00015616,2]
[323015578,1713588657320,-500.0,0.00015616,2]
[323015579,1713588657330,-500.0,0.00015616,2]
[323015580,1713588657339,-111.79075342,0.00015616,2]
[323015581,1713588657544,-1112.49924658,0.00015616,2]
[323015582,1713588657554,-500.0,0.00015616,2]
[323015583,1713588657563,-500.0,0.00015616,2]
[323015584,1713588657572,-111.33379722,0.00015616,2]
[323015585,1713588663254,-0.01245843,0.00015616,2]
[323015586,1713588681850,9098.93212911,9e-05,2]
[323015587,1713588685696,-154.67,0.00019045,15]
[323015588,1713588685778,-150.5,0.0001956,15]
[323015589,1713588685802,-150.5,0.0001956,15]
[323015590,1713588685823,-150.5,0.0001956,15]
[323015591,1713588685843,-150.5,0.0001956,15]
[323015592,1713588685864,-186.0,0.0001956,15]
[323015593,1713588685884,-150.5,0.0001956,15]
[323015594,1713588685904,-150.5,0.0001956,15]
[323015595,1713588685925,-150.5,0.0001956,15]
[323015596,1713588685945,-186.0,0.0001956,15]
[323015597,1713588685966,-368.0,0.0001956,15]
[323015598,1713588685987,-159.97,0.0001956,15]
[323015599,1713588686007,-267.53,0.0001956,15]
[323015600,1713588686030,-1680.0,0.0001956,15]
[323015601,1713588686051,-1680.0,0.0001956,15]
[323015602,1713588686072,-21813.0,0.0001956,15]
[323015603,1713588686095,-21813.0,0.0001956,15]
[323015604,1713588686115,-150.5,0.0001957,15]
[323015605,1713588686134,-150.5,0.0001957,15]
[323015606,1713588686154,-150.5,0.0001957,15]
[323015607,1713588686178,-150.5,0.0001957,15]
[323015608,1713588686198,-150.5,0.0001957,15]
[323015609,1713588686217,-150.5,0.0001957,15]
[323015610,1713588686237,-150.5,0.0001957,15]
[323015611,1713588686258,-186.0,0.0001957,15]
[323015612,1713588686279,-150.5,0.0001957,15]
[323015613,1713588686301,-150.5,0.0001957,15]
[323015614,1713588686323,-186.0,0.0001957,15]
[323015615,1713588686344,-300.0,0.0001957,15]
[323015616,1713588686366,-300.0,0.0001957,15]
[323015617,1713588686589,-17149.0,0.0001957,15]
[323015618,1713588686610,-685.0,0.0001957,15]
[323015619,1713588686631,-17149.0,0.0001957,15]
[323015620,1713588686652,-685.0,0.0001957,15]
[323015621,1713588686672,-1000.0,0.0001957,15]
[323015622,1713588686692,-1000.0,0.0001957,15]
[323015623,1713588686713,-368.0,0.0001957,15]
[323015624,1713588686734,-186.0,0.0001957,15]
[323015625,1713588686755,-17152.36,0.0001957,15]
[323015626,1713588686774,-691.0,0.0001957,15]
[323015627,1713588686795,-303.1,0.0001957,15]
[323015628,1713588686818,-194.29,0.0001957,15]
[323015629,1713588686838,-227.12,0.0001957,15]
[323015630,1713588686858,-259.3,0.0001957,15]
[323015631,1713588686878,-369.25,0.0001957,15]
[323015632,1713588686898,-165.85,0.0001957,15]
[323015633,1713588686919,-217.45,0.0001957,15]
[323015634,1713588686939,-1680.0,0.0001957,15]
[323015635,1713588686961,-1680.0,0.0001957,15]
[323015636,1713588686981,-1680.0,0.0001957,15]
[323015637,1713588687000,-1681.8,0.0001957,15]
[323015638,1713588687021,-179.28,0.0001957,15]
[323015639,1713588687041,-21813.0,0.0001957,15]
[323015640,1713588687064,-21813.0,0.0001957,15]
[323015641,1713588687086,-21813.0,0.0001957,15]
[323015642,1713588687107,-21821.94,0.0001957,15]
[323015643,1713588687129,-150.5,0.00019579,15]
[323015644,1713588687149,-150.5,0.0001958,15]
[323015645,1713588687171,-150.5,0.0001958,15]
[323015646,1713588687191,-150.5,0.0001958,15]
[323015647,1713588687212,-150.5,0.0001958,15]
[323015648,1713588687233,-150.5,0.0001958,15]
[323015649,1713588687255,-150.5,0.0001958,15]
[323015650,1713588687277,-150.5,0.0001958,15]
[323015651,1713588687298,-150.5,0.0001958,15]
[323015652,1713588687322,-150.5,0.0001958,15]
[323015653,1713588687343,-150.5,0.0001958,15]
[323015654,1713588687363,-150.5,0.0001958,15]
[323015655,1713588687384,-186.0,0.0001958,15]
[323015656,1713588687404,-150.5,0.0001958,15]
[323015657,1713588687425,-150.5,0.0001958,15]
[323015658,1713588687445,-186.0,0.0001958,15]
[323015659,1713588687465,-150.5,0.0001958,15]
[323015660,1713588687485,-300.0,0.0001958,15]
[323015661,1713588687505,-300.0,0.0001958,15]
[323015662,1713588687527,-300.0,0.0001958,15]
[323015663,1713588687547,-12818.59,0.0001958,15]
[323015664,1713588698963,150.0,0.00011,2]
[323015665,1713588698983,150.0,0.00011,2]
[323015666,1713588699003,150.0,0.00011,2]
[323015667,1713588699026,150.0,0.00011,2]
[323015668,1713588699047,150.0,0.00011,2]
[323015669,1713588699070,150.0,0.00011,2]
[323015670,1713588699095,150.0,0.00011,2]
[323015671,1713588699115,150.0,0.00011,2]
[323015672,1713588699136,150.0,0.00011,2]
[323015673,1713588699157,150.0,0.00011,2]
[323015674,1713588699180,150.0,0.00011,2]
[323015675,1713588699201,150.0,0.00011,2]
[323015676,1713588699222,150.0,0.00011,2]
[323015677,1713588699244,150.0,0.00011,2]
[323015678,1713588699265,150.0,0.00011,2]
[323015679,1713588699287,150.0,0.00011,2]
[323015680,1713588699308,150.0,0.00011,2]
[323015681,1713588699341,150.0,0.00011,2]
[323015682,1713588699378,150.0,0.00011,2]
[323015683,1713588699400,150.0,0.00011,2]
[323015684,1713588699421,150.0,0.00011,2]
[323015685,1713588699441,150.0,0.00011,2]
[323015686,1713588699462,238.75003197,0.00011,2]
[323015687,1713588699484,4461.24996803,0.00011,2]
[323015688,1713588704249,334.63338574,9e-05,2]
[323015689,1713588708043,173.32213471,9e-05,2]
[323015690,1713588708453,1173.18661465,9e-05,2]
[323015691,1713588712720,344.24297714,9e-05,2]
[323015692,1713588714426,323.62934981,9e-05,2]
[323015693,1713588716997,21162.32895902,6.94e-05,2]
[323015694,1713588720284,958.46925549,9e-05,2]
[323015695,1713588724252,338.1380131,9e-05,2]
[323015696,1713588726728,155.0,9e-05,2]
[323015697,1713588726823,211.42468372,9e-05,2]
[323015698,1713588727929,172.84270533,9e-05,2]
[323015699,1713588733429,1471.23999943,9e-05,2]
[323015700,1713588734431,195.63277217,9e-05,2]
[323015701,1713588736278,20165.67492911,9e-05,2]
[323015702,1713588748471,19670.6242153,9e-05,2]
[323015703,1713588749373,1471.23999943,9e-05,2]
[323015704,1713588758242,20165.67492911,9e-05,2]
[323015705,1713588766465,19670.6242153,9e-05,2]
[323015706,1713588771353,1471.23999943,9e-05,2]
[323015707,1713588778260,20165.67492911,9e-05,2]
[323015708,1713588784473,15753.14104068,9e-05,2]
[323015709,1713588787365,1471.23999943,9e-05,2]
[323015710,1713588798258,6822.28896223,9e-05,2]
[323015711,1713588809182,28000.0,0.000155,5]
[323015712,1713588809361,1466.23570932,9e-05,2]
[323015715,1713588882741,571.21241525,0.00014966,7]
[323015716,1713588904654,571.21241525,0.00014966,7]
[323015717,1713588922642,571.21241525,0.00014966,7]
[323015718,1713588942877,308.24945175,0.00014966,7]
[323015719,1713588992797,177.6,0.0001002,2]
[323015720,1713589037031,179.60225779,0.0001002,2]
[323015721,1713589041911,298.71922923,0.0001002,2]
[323015722,1713589051598,179.60225779,0.0001002,2]
[323015723,1713589061739,297.6748788,0.0001002,2]
[323015724,1713589067137,275.46773419,0.0001002,2]
[323015725,1713589170013,154.67,0.0001611,15]
[323015726,1713589180523,-4321.33655716,0.00011229,2]
[323015727,1713589180546,-262.19707218,0.0001123,2]
[323015728,1713589180569,-1293.62492362,0.0001123,2]
[323015729,1713589180592,-3775.40590199,0.0001123,2]
[323015730,1713589180614,-1244.09332357,0.0001123,2]
[323015731,1713589180636,-23344.54514133,0.0001123,2]
[323015732,1713589180657,-192.6832454,0.0001123,2]
[323015733,1713589180679,-376.71560002,0.0001123,2]
[323015734,1713589180701,-1128.24549352,0.00011231,2]
[323015735,1713589180723,-313.67030526,0.00011231,2]
[323015736,1713589180748,-210.53465711,0.00011231,2]
[323015737,1713589180771,-155.0,0.00011231,2]
[323015738,1713589180795,-202.26348816,0.00011231,2]
[323015739,1713589180817,-2354.67915026,0.00011231,2]
[323015740,1713589180839,-1581.61199899,0.00011232,2]
[323015741,1713589180859,-150.06811387,0.00011232,2]
[323015742,1713589180880,-1878.19259,0.00011275,2]
[323015743,1713589180901,-1226.99873406,0.00011332,2]
[323015744,1713589180922,-338.0,0.00011332,2]
[323015745,1713589180943,-249.26995195,0.00011333,2]